Cogmind - Beta 17 @@@ ROGUE MODE // 2026.07.14 @ 18:54:34 // Winter2019/RPGLIKE Player: Gallgagger Result: Self-destructed Performance ------------- Evolutions (1) 500 Regions Visited (6) 1200 Robots Destroyed (0) 0 Value Destroyed (0) 0 Prototype IDs (24) 480 Alien Tech Used (0) 0 Bonus (507) 507 TOTAL SCORE: 2687 Bonus ------- Pacifist 200 Follower Combat Kills 7 Aligned with FarCom 300 Cogmind --------- Core Integrity 171/850 Matter 300/300 Energy 100/100 System Corruption 0% Temperature Cool (0) Movement Core (50) Location -8/Mines Parts ------- > --- POWER (1) -------- (None) > --- PROPULSION (1) --- Improved Flight Unit > --- UTILITY (1) ------ (None) > --- WEAPON (1) ------- (None) > --- INVENTORY (0) ---- (None) Peak State ------------ > --- POWER ------------ (None) > --- PROPULSION ------- Improved Flight Unit > --- UTILITY ---------- (None) > --- WEAPON ----------- (None) > --- INVENTORY -------- (None) [Rating: 3] Favorites ----------- Power None Propulsion Improved Flight Unit Flight Unit Improved Flight Unit Utility None Weapon None Build | -11 -10 -10 -9 -9 -9 -8 ------- Run | Yrd Mat Min Mat Min Exi Min Slots Evolved . | . . . . . . . Power . | . . . . . . . Propulsion . | . . . . . . . Utility . | . . . . . . . Weapon . | . . . . . . . Parts Attached 1 | . . . 1 . . . Power . | . . . . . . . Engine . | . . . . . . . Core . | . . . . . . . Reactor . | . . . . . . . Propulsion 1 | . . . 1 . . . Treads . | . . . . . . . Leg . | . . . . . . . Wheel . | . . . . . . . Hover . | . . . . . . . Flight 1 | . . . 1 . . . Utility . | . . . . . . . Device . | . . . . . . . Storage . | . . . . . . . Processor . | . . . . . . . Hackware . | . . . . . . . Protection . | . . . . . . . Artifact . | . . . . . . . Weapon . | . . . . . . . Energy Gun . | . . . . . . . Energy Cannon . | . . . . . . . Ballistic Gun . | . . . . . . . Ballistic Cannon . | . . . . . . . Launcher . | . . . . . . . Special Weapon . | . . . . . . . Impact Weapon . | . . . . . . . Slashing Weapon . | . . . . . . . Piercing Weapon . | . . . . . . . Special Melee Weapon . | . . . . . . . Unidentified Prototypes 1 | . . . 1 . . . Parts Lost . | . . . . . . . Power . | . . . . . . . Propulsion . | . . . . . . . Utility . | . . . . . . . Weapon . | . . . . . . . Highest Loss Streak . | . . . . . . . To Critical Strikes . | . . . . . . . Average Backups . | . . . . . . . Power . | . . . . . . . Propulsion . | . . . . . . . Utility . | . . . . . . . Weapon . | . . . . . . . Tool/Special . | . . . . . . . Unused Backups . | . . . . . . . Power . | . . . . . . . Propulsion . | . . . . . . . Utility . | . . . . . . . Weapon . | . . . . . . . Tool/Special . | . . . . . . . Average Slot Usage (%) 19 | . . . 15 25 25 25 Flight 19 | . . . 15 25 25 25 Peak Build Rating 3 | . . . 3 3 3 3 Average Rating 2 | . . . 1 3 3 3 On Entrance 1 | . . . . 3 3 3 Avg Prop Armor Cover (%) 11 | . . . . . 11 11 Naked Turns 127 | . 12 83 32 . . . Heaviest Build . | . . . . . . . Greatest Support 5 | 3 3 3 5 5 5 3 Greatest Overweight (x) . | . . . . . . . Average Overweight (x) . | . . . . . . . Largest Inventory Capacity . | . . . . . . . Average Capacity . | . . . . . . . Most Carried . | . . . . . . . Average Carried . | . . . . . . . Final Capacity . | . . . . . . . Final Carried . | . . . . . . . Class Distribution -------------------- 100% | Mutant Dominant Class ---------------- Mutant | -10/Materials Mutant | -10/Mines Mutant | -9/Materials Mutant | -9/Mines Mutant | -9/Exiles Mutant | -8/Mines Resources | -11 -10 -10 -9 -9 -9 -8 ----------- Run | Yrd Mat Min Mat Min Exi Min Matter Collected 210 | 187 . 13 . 10 . . Remotely . | . . . . . . . Salvage Created . | . . . . . . . Parts . | . . . . . . . Haulers Intercepted . | . . . . . . . Recyclers Shooed . | . . . . . . . Parts Field Recycled . | . . . . . . . Retrieved Matter . | . . . . . . . Parts Self-Destructed . | . . . . . . . Prevented . | . . . . . . . Parts Restored . | . . . . . . . Kills | -11 -10 -10 -9 -9 -9 -8 ------- Run | Yrd Mat Min Mat Min Exi Min Combat Hostiles Destroyed . | . . . . . . . Classes Destroyed . | . . . . . . . Best Kill Streak . | . . . . . . . Combat Bots Only . | . . . . . . . Max Kills in Single Turn . | . . . . . . . Gunslinging . | . . . . . . . Exploded . | . . . . . . . Melee . | . . . . . . . Uniques/NPCs Destroyed . | . . . . . . . Combat | -11 -10 -10 -9 -9 -9 -8 -------- Run | Yrd Mat Min Mat Min Exi Min Hostile Shots Fired 64 | . . 16 29 19 . . Missed 22 | . . 3 15 4 . . Hits 42 | . . 13 14 15 . . Melee 1 | . . . 1 . . . Projectile 41 | . . 13 13 15 . . AOE 4 | . . . . 4 . . Critical Strikes 1 | . . . 1 . . . Damage Taken 693 | . . 139 218 314 22 . Core 679 | . . 139 218 305 17 . Absorbed by Shields . | . . . . . . . Redirected to Core 49 | . . . . 32 17 . Core Remaining (%) 88 | 100 . 76 . . . . Volleys Fired . | . . . . . . . Largest . | . . . . . . . Hottest . | . . . . . . . Shots Fired . | . . . . . . . Gun . | . . . . . . . Cannon . | . . . . . . . Launcher . | . . . . . . . Special . | . . . . . . . Kinetic . | . . . . . . . Thermal . | . . . . . . . Explosive . | . . . . . . . Electromagnetic . | . . . . . . . Robot Hit Streak . | . . . . . . . Robot Miss Streak . | . . . . . . . Penetration Max . | . . . . . . . Secondary Targets . | . . . . . . . Shots Hit Robots . | . . . . . . . Core Hits 1 | . . 1 . . . . Critical Kills . | . . . . . . . Critical Parts Destroyed . | . . . . . . . Critical Strikes . | . . . . . . . Melee Attacks . | . . . . . . . Impact . | . . . . . . . Slashing . | . . . . . . . Piercing . | . . . . . . . Sneak Attacks . | . . . . . . . Combat Hostiles . | . . . . . . . Follow-up Attacks . | . . . . . . . Damage Inflicted 50 | . . 28 . . 22 . Guns . | . . . . . . . Cannons . | . . . . . . . Explosions . | . . . . . . . Melee . | . . . . . . . Ramming 50 | . . 28 . . 22 . Kinetic . | . . . . . . . Thermal . | . . . . . . . Explosive . | . . . . . . . Electromagnetic . | . . . . . . . Impact . | . . . . . . . Slashing . | . . . . . . . Piercing . | . . . . . . . Highest Corruption . | . . . . . . . Average Corruption . | . . . . . . . Corruption Purged . | . . . . . . . Corruption Blocked . | . . . . . . . Overload Shots . | . . . . . . . Overflow Damage . | . . . . . . . Projectiles . | . . . . . . . Explosions . | . . . . . . . Melee . | . . . . . . . Knockbacks . | . . . . . . . Impact . | . . . . . . . Kinetic . | . . . . . . . Secondary . | . . . . . . . Self-Inflicted Damage 36 | . . 14 . . 22 . Shots . | . . . . . . . Rammed 6 | . . 6 . . . . Targets Rammed 6 | . . 6 . . . . Kicked . | . . . . . . . Crushed . | . . . . . . . Highest Temperature 2 | . . . 2 . . . Average Temperature 2 | . . . 2 . . . Received Heat Transfer 126 | . . . 51 75 . . Siege Activations . | . . . . . . . Martial Activations . | . . . . . . . Shielding Activations . | . . . . . . . Robots Disrupted . | . . . . . . . Combat Hostiles . | . . . . . . . Robots Corrupted . | . . . . . . . Combat Hostiles . | . . . . . . . Parts Fried . | . . . . . . . Impact Corruptions . | . . . . . . . Robots Melted . | . . . . . . . Combat Hostiles . | . . . . . . . Parts Melted . | . . . . . . . Heat Transferred . | . . . . . . . Parts Sabotaged . | . . . . . . . Parts Stolen . | . . . . . . . Parts Stripped . | . . . . . . . Power Chain Reactions . | . . . . . . . Alert | -11 -10 -10 -9 -9 -9 -8 ------- Run | Yrd Mat Min Mat Min Exi Min Maximum Alert Level . | . . . . . . . Low Security (%) 100 | 100 100 100 100 100 . 100 Level 1 . | . . . . . . . Level 2 . | . . . . . . . Level 3 . | . . . . . . . Level 4 . | . . . . . . . Level 5 . | . . . . . . . High Security . | . . . . . . . Max Security . | . . . . . . . Peak Influence 161 | . . 15 15 161 . . Initial 1 | . . . 1 . . . Average 28 | . . 1 3 56 . . Influence Increases 308 | . . 15 22 271 . . Destroy 0b10 Robot/C 80 | . . . . 80 . . Destroy Leader 10 | . . . . 10 . . Allied During Kill 1 | . . . . 1 . . Successful Hack 7 | . . . 7 . . . Lose Combat Pursuer 210 | . . 15 15 180 . . Influence Decreases 308 | . . 10 27 110 161 . Entered New Map 165 | . . . 4 . 161 . Time Decay 123 | . . 10 23 90 . . Lost Ally 20 | . . . . 20 . . Squads Dispatched 1 | . . . 1 . . . Investigation . | . . . . . . . Extermination . | . . . . . . . Reinforcement 1 | . . . 1 . . . Assault . | . . . . . . . Garrison . | . . . . . . . Intercept . | . . . . . . . Searches Triggered . | . . . . . . . Construction Impeded . | . . . . . . . Haulers Reinforced . | . . . . . . . Active Scanning Responses . | . . . . . . . Cargo Convoy Interrupts . | . . . . . . . Stealth | -11 -10 -10 -9 -9 -9 -8 --------- Run | Yrd Mat Min Mat Min Exi Min Distress Signals 2 | . . . 2 . . . Communications Jammed . | . . . . . . . Distress Signals . | . . . . . . . Times Spotted 29 | . . 3 11 14 . 1 Peak Tracking Total 11 | . . 3 9 11 9 1 Tactical Retreats 7 | . . 1 1 5 . . Traps | -11 -10 -10 -9 -9 -9 -8 ------- Run | Yrd Mat Min Mat Min Exi Min Traps Triggered 1 | . . . 1 . . . Indirectly . | . . . . . . . Trap Hack Attempts . | . . . . . . . Triggered . | . . . . . . . Disarmed . | . . . . . . . Reprogrammed . | . . . . . . . Reused . | . . . . . . . Traps Extracted . | . . . . . . . Installed . | . . . . . . . Triggered . | . . . . . . . Machines | -11 -10 -10 -9 -9 -9 -8 ---------- Run | Yrd Mat Min Mat Min Exi Min Machines Disabled 1 | . . . . . 1 . Max in Single Turn 1 | . . . . . 1 . Machines Repaired . | . . . . . . . Machines Dismantled . | . . . . . . . Machines Sabotaged . | . . . . . . . Overloaded Fab Kills . | . . . . . . . Hacking | -11 -10 -10 -9 -9 -9 -8 --------- Run | Yrd Mat Min Mat Min Exi Min Machines Accessed 2 | . . . 1 . 1 . Terminals 1 | . . . 1 . . . Fabricators . | . . . . . . . Repair Stations . | . . . . . . . Recycling Units . | . . . . . . . Scanalyzers . | . . . . . . . Garrison Access . | . . . . . . . Total Hacks 3 | . . . 2 . 1 . Successful 2 | . . . 1 . 1 . Failed 1 | . . . 1 . . . Catastrophic 1 | . . . 1 . . . Database Lockouts . | . . . . . . . Manual 3 | . . . 2 . 1 . Terminals 2 | . . . 2 . . . Fabricators . | . . . . . . . Repair Stations . | . . . . . . . Recycling Units . | . . . . . . . Scanalyzers . | . . . . . . . Garrison Access . | . . . . . . . Terminal Hacks 2 | . . . 1 . 1 . Branch Access Points 1 | . . . 1 . . . Proto ID Catalog 1 | . . . . . 1 . Fabricator Hacks . | . . . . . . . Repair Station Hacks . | . . . . . . . Recycling Unit Hacks . | . . . . . . . Scanalyzer . | . . . . . . . Garrison Access Hacks . | . . . . . . . Unauthorized Hacks . | . . . . . . . Terminals . | . . . . . . . Fabricators . | . . . . . . . Repair Stations . | . . . . . . . Recycling Units . | . . . . . . . Scanalyzers . | . . . . . . . Garrison Access . | . . . . . . . Data Cores Recovered . | . . . . . . . Used . | . . . . . . . Hacking Detections . | . . . . . . . Full Trace Events . | . . . . . . . Feedback Events . | . . . . . . . Feedback Blocked . | . . . . . . . Robot Schematics Acquired . | . . . . . . . Robots Built . | . . . . . . . Authchips . | . . . . . . . Time . | . . . . . . . Total Robot Build Rating . | . . . . . . . Part Schematics Acquired . | . . . . . . . Parts Built . | . . . . . . . Authchips . | . . . . . . . Time . | . . . . . . . Total Part Build Rating . | . . . . . . . Part Studies Acquired . | . . . . . . . Parts Repaired . | . . . . . . . Time . | . . . . . . . Parts Recycled . | . . . . . . . Recycled Matter . | . . . . . . . Retrieved Matter . | . . . . . . . Retrieved Components . | . . . . . . . Parts Scanalyzed . | . . . . . . . Part Schematics Acquired . | . . . . . . . Parts Damaged . | . . . . . . . Bothacking | -11 -10 -10 -9 -9 -9 -8 ------------ Run | Yrd Mat Min Mat Min Exi Min Used RIF Installer . | . . . . . . . Robots Hacked . | . . . . . . . Non-combat . | . . . . . . . Combat . | . . . . . . . Robot Hacks Applied . | . . . . . . . Relay Couplers Released . | . . . . . . . Fabnet Peak Effective % . | . . . . . . . Robots Rewired . | . . . . . . . Allies Hacked . | . . . . . . . Hacks Repelled . | . . . . . . . Allies | -11 -10 -10 -9 -9 -9 -8 -------- Run | Yrd Mat Min Mat Min Exi Min Total Allies 3 | . . . . 3 . . Largest Group 3 | . . . . 3 . . Highest-Rated Group 40 | . . . . 40 . . Highest-Rated Ally 16 | . . . . 16 . . Total Orders . | . . . . . . . Ally Attacks 10 | . . . . 10 . . Total Damage 88 | . . . . 88 . . Kills 4 | . . . . 4 . . Allies Corrupted . | . . . . . . . Allies Melted . | . . . . . . . Intel | -11 -10 -10 -9 -9 -9 -8 ------- Run | Yrd Mat Min Mat Min Exi Min Active Infowar (turns) . | . . . . . . . Robot Analysis Total . | . . . . . . . Derelict Logs Recovered 1 | . . . . 1 . . Drone Launches . | . . . . . . . Drone Recoveries . | . . . . . . . Exploration | -11 -10 -10 -9 -9 -9 -8 ------------- Run | Yrd Mat Min Mat Min Exi Min Turns Passed 635 | 9 12 83 92 252 123 64 Spaces Moved 1433 | 18 23 154 201 617 294 126 Core 424 | 18 23 154 62 . 41 126 Treads . | . . . . . . . Legs . | . . . . . . . Wheels . | . . . . . . . Hover . | . . . . . . . Flight 1009 | . . . 139 617 253 . Fastest Speed 40 | 50 50 50 40 40 40 50 Average Speed 42 | 50 50 50 43 40 41 50 Slowest Speed 50 | 50 50 50 50 40 50 50 Overloaded Moves . | . . . . . . . Propulsion Burnouts . | . . . . . . . Robots Hopped 12 | . . . 5 7 . . Potential Cave-ins . | . . . . . . . Cave-ins Triggered . | . . . . . . . Exploration Rate (%) 38 | 3 10 46 26 98 62 23 Regions Visited 6 Branch Regions 4 Pre-discovered Areas . | . . . . . . . Known Exits Taken 1 | . . . 1 . . . Unknown Exits Taken 5 | 1 1 1 . 1 1 . Scrap Searched 4 | . . 1 . 2 . 1 Spaces Dug . | . . . . . . . Terrain Destroyed . | . . . . . . . Melee . | . . . . . . . Projectile . | . . . . . . . AOE . | . . . . . . . Terrain Rammed 1 | . . . . . 1 . Walls Destroyed . | . . . . . . . Machines Disabled 1 | . . . . . 1 . Actions | -11 -10 -10 -9 -9 -9 -8 --------- Run | Yrd Mat Min Mat Min Exi Min Total 1432 | 17 22 159 200 614 294 126 Wait 9 | . . . 4 5 . . Move 1405 | 17 22 153 190 604 293 126 Hop 10 | . . . 5 5 . . Pick Up . | . . . . . . . Fast Attach 1 | . . . 1 . . . Attach . | . . . . . . . Detach . | . . . . . . . Swap . | . . . . . . . Drop . | . . . . . . . Fire . | . . . . . . . Melee . | . . . . . . . Ram 7 | . . 6 . . 1 . Kick . | . . . . . . . Crush . | . . . . . . . Escape Stasis . | . . . . . . . Rewire . | . . . . . . . Trap . | . . . . . . . Miscellaneous . | . . . . . . . Route ------- -11/Scrapyard -10/Materials -10/Mines -9/Materials (discovered 2 exits: *Min / *Sto) -9/Mines (discovered 3 exits: *Mat x2 / *Exi) -9/Exiles -8/Mines History --------- Turn | Location | Event 3 | -11/Scrapyard | Discovered new exit (range 15) 10 | -11/Scrapyard | Entered Materials 17 | -10/Materials | Discovered new exit (range 9) 22 | -10/Materials | Entered Mines 84 | -10/Mines | Met a Derelict bent on vengeance 103 | -10/Mines | Discovered new exit (range 5) 105 | -10/Mines | Entered Materials 107 | -9/Materials | Reached level 2 124 | -9/Materials | Discovered new exit (range 5) 170 | -9/Materials | Core integrity fell below 50% 182 | -9/Materials | Identified exit to Mines 182 | -9/Materials | Identified exit to Storage 197 | -9/Materials | Entered Mines 211 | -9/Mines | Assembled infested the area 224 | -9/Mines | Received a Rocket Launcher from a helpful Derelict 243 | -9/Mines | Core integrity fell below 20% 247 | -9/Mines | Discovered new exit (range 8) 281 | -9/Mines | Identified exit to Materials 310 | -9/Mines | Build established: Mutant 349 | -9/Mines | Assisted by bots powering up and referring to "LRC-V3" 386 | -9/Mines | Reached level 3 447 | -9/Mines | Discovered new exit (range 5) 449 | -9/Mines | Entered Exiles 460 | -9/Exiles | Met 8R-AWN 466 | -9/Exiles | Met EX-HEX 478 | -9/Exiles | Met EX-BIN 484 | -9/Exiles | Aligned with FarCom system 484 | -9/Exiles | Given EX-Vault access code 493 | -9/Exiles | Opened EX-Vault 504 | -9/Exiles | Warned to stay clear of 0b10 Research branches 517 | -9/Exiles | Met EX-DEC 530 | -9/Exiles | Discovered new exit (range 14) 552 | -9/Exiles | Attacked by the Exiles 572 | -9/Exiles | Entered Mines 636 | -8/Mines | 7V-RTL came to Exiles' defense 636 | -8/Mines | Self-destructed Last Messages --------------- 00530_ EXIT=FOUND 00551_ Slammed into Machine. 00551_ Machine disabled. 00551_ Imp. Flight Unit broken. 00551_ Destabilizing: Short circuit. 00552_ EXILES: Hostile robot within lab perimeter. Defensive protocols time, folks! A strange signal echoes through the mines. LOCATION=UNKNOWN GOAL=ESCAPE 00573_ K-01 Serf collects debris. 00577_ Searching scrap... 00577_ Found Disposable Heat Sink. 00577_ Found Com. Matter Pod. 00577_ Found Imp. Terrain Scanner. 00577_ Found 51 Matter. 00601_ K-01 Serf collects debris. 00606_ K-01 Serf cleans the Pressure Siphon. 00624_ K-01 Serf collects debris. 00636_ 7V-RTL: "I came as fast as I could... Wait, it was you!" Map ----- +----------------------------------------------------+ | ???????????????????????????????????? | | ???????????????????????????????????? | | ???????????????????????????????????? | | ???????????????????????????????????? | | ???????????????????????????????????? | | ???????????????????????????????????? | | ???????????????????????????????????? | | ???????????????????????????????????? | | ???????????????????????????????????? | | ???????????????????????????????????? | | ???????????????????????????????????? | | ???????????#???????????????????????? | | ??????????# ???????????????????????? | | ?????????# ???????????????????????? | | ?????????# ???????????????????????? | | ?????????# Y???????????????????????? | | ?????????# ???????????????????????? | | ?????????; #??????????????????????? | | ?????????# #??????????????????????? | | ?????????# #??????????????????????? | | ?????????# #??????????????????????? | | ?????????# #???????????????#??????? | | ?????????# #?????????????? #??????? | | ?????????# #?????????????? #??????? | | ????###??# ###??????????? #??????? | | ???## #?# @ #??????????? #??????? | | ???# ?# #?????????## #??????? | | ???# #### #????????# #??????? | | ???# ### #???????? #??????? | | ???# ## ##??????? ##?????? | | ???# #?????## ### #?? | | ????# ##?????# ???? | | ????#### ##??????# #?????? | | ???????## ##???????# #?????? | | ????????# ##???###### ##????? | | ????????# ##???# ##???? | | ???????## ##### #???? | | ???????# ####### ##??? | | ???????# ######??????# #??? | | ???????## ##?######?????# #??? | | ????????## #??# #??????# #??? | | ?????????# #### #???????# ##?? | | ?????????# #??????## ### | | ?????????####### #????### | | ???????????????# ###### """" | | ???????????????# !! """" | | ???????????????# %! """" | | ???????????????########### # | | ?????????????????????????#### #### | | ????????????????????????????#####??? | +----------------------------------------------------+ Best States ------------- Heat Dissipation 25 Energy Generation 5 Energy Capacity 100 Matter Stores 300 Matter Capacity 300 Sight Range 16 Terrain Scan Density 10 Evasion (%) 62 Item Schematics ----------------- None Robot Schematics ------------------ None Fabricated ------------ Nothing Repaired ---------- Nothing Studied --------- None Alien Tech Used ----------------- None Achievements -------------- None Challenges ------------ None RPGLIKE | -11 -10 -10 -9 -9 -9 -8 --------- Run | Yrd Mat Min Mat Min Exi Min Levels Raised 2 | . . . 1 1 . . XP Earned 6938 | 3000 . 600 1535 953 350 500 XP Spent 225 | . . . . 225 . . Upgrades 5 | . . . . 5 . . Core Integrity 5 | . . . . 5 . . Protomatter Created . | . . . . . . . Protomatter Decayed 106 | . . . . 106 . . Game ------ Seed StealthCoolingDriveblaster Manual? 0 Play Time 00:06:22 Cumulative 662.5 hours Start 2026.07.14 @ 18:48:55 End 2026.07.14 @ 18:54:34 Sessions 1 Manual Loads 0 Difficulty Rogue Special Mode Winter2019/RPGLIKE Game No. 289 Rogue 135 Adventurer 154 Explorer 0 Win Type - Total 22 Types 4/5/4/3/2/1/0/1/1/1 Lore% 95 Gallery% 88 Achievement% 68 Wizard Run 0 Options --------- Layout 0 ASCII 0 Keyboard 0 Movement Numpad Keybinds 0 Fullscreen 2 Font 18/SmallcapsGlow Map View 76x50 Zoom Use 0% Tactical HUD 1 Map Filters NONE Filters NONE Steam 1 RUN: 6b518098-919d-4e62-a932-1de100f53819